[Event "*** Titled Tuesday Blitz"]
[Site "Chess.com"]
[Date "2020.05.12"]
[Round "4"]
[White "VerdeNotte"]
[Black "lIlIlIlI_lIl"]
[Result "1-0"]
[WhiteElo "2875"]
[BlackElo "2632"]
[TimeControl "180+1"]
[EndTime "10:40:52 PDT"]
[Termination "VerdeNotte won on time"]

1. e4 {[%clk 0:02:59.1]} 1... c5 {[%clk 0:02:59.5]} 2. Nc3 {[%clk 0:02:56.9]}
2... e6 {[%clk 0:02:59.3]} 3. Nf3 {[%clk 0:02:56.7]} 3... d6 {[%clk 0:02:58.2]}
4. g3 {[%clk 0:02:55.9]} 4... Nc6 {[%clk 0:02:56.7]} 5. Bg2 {[%clk 0:02:56.2]}
5... Nf6 {[%clk 0:02:56.3]} 6. O-O {[%clk 0:02:55.8]} 6... Be7 {[%clk
0:02:56.5]} 7. d4 {[%clk 0:02:47]} 7... cxd4 {[%clk 0:02:57.4]} 8. Nxd4 {[%clk
0:02:47.6]} 8... Bd7 {[%clk 0:02:57.9]} 9. Re1 {[%clk 0:02:32.9]} 9... O-O
{[%clk 0:02:48.7]} 10. Nxc6 {[%clk 0:02:29.3]} 10... Bxc6 {[%clk 0:02:44.6]} 11.
e5 {[%clk 0:02:29.8]} 11... dxe5 {[%clk 0:02:39.8]} 12. Bxc6 {[%clk 0:02:30]}
12... bxc6 {[%clk 0:02:38.1]} 13. Rxe5 {[%clk 0:02:20.3]} 13... Qxd1+ {[%clk
0:02:02.7]} 14. Nxd1 {[%clk 0:02:19.8]} 14... Rfd8 {[%clk 0:02:03.6]} 15. Bg5
{[%clk 0:02:13.4]} 15... h6 {[%clk 0:01:51.3]} 16. Bxf6 {[%clk 0:02:13.1]} 16...
Bxf6 {[%clk 0:01:51.1]} 17. Re2 {[%clk 0:01:58.2]} 17... Bd4 {[%clk 0:01:39]}
18. Rb1 {[%clk 0:01:41]} 18... Rd5 {[%clk 0:01:33.7]} 19. Ne3 {[%clk 0:01:31.3]}
19... Bxe3 {[%clk 0:01:32.6]} 20. Rxe3 {[%clk 0:01:32.2]} 20... Ra5 {[%clk
0:01:27]} 21. a3 {[%clk 0:01:29]} 21... Rc5 {[%clk 0:01:25.3]} 22. c3 {[%clk
0:01:26.6]} 22... Rd8 {[%clk 0:01:24.8]} 23. b4 {[%clk 0:01:24.3]} 23... Rcd5
{[%clk 0:01:22.7]} 24. a4 {[%clk 0:01:09.5]} 24... Rd2 {[%clk 0:01:17.2]} 25. b5
{[%clk 0:00:58.7]} 25... cxb5 {[%clk 0:01:15.2]} 26. axb5 {[%clk 0:00:59.6]}
26... Rc2 {[%clk 0:00:48.2]} 27. Ra1 {[%clk 0:00:57.5]} 27... Rd7 {[%clk
0:00:39.6]} 28. h4 {[%clk 0:00:45.1]} 28... Rc7 {[%clk 0:00:38.7]} 29. Kg2
{[%clk 0:00:37.1]} 29... R2xc3 {[%clk 0:00:34.1]} 30. Rxa7 {[%clk 0:00:30.6]}
30... Rxe3 {[%clk 0:00:31.6]} 31. Rxc7 {[%clk 0:00:30.3]} 31... Rb3 {[%clk
0:00:31.8]} 32. Rc8+ {[%clk 0:00:24]} 32... Kh7 {[%clk 0:00:31.2]} 33. Rc5
{[%clk 0:00:24.5]} 33... Kg6 {[%clk 0:00:23]} 34. h5+ {[%clk 0:00:20.3]} 34...
Kf6 {[%clk 0:00:22.8]} 35. g4 {[%clk 0:00:19.3]} 35... Ke7 {[%clk 0:00:20.2]}
36. Rc7+ {[%clk 0:00:18.4]} 36... Kf6 {[%clk 0:00:19.9]} 37. Rc5 {[%clk
0:00:18.6]} 37... Ke7 {[%clk 0:00:19.5]} 38. Rc7+ {[%clk 0:00:18.9]} 38... Kf6
{[%clk 0:00:19.4]} 39. Rb7 {[%clk 0:00:19.6]} 39... g6 {[%clk 0:00:17.4]} 40.
hxg6 {[%clk 0:00:19]} 40... Kxg6 {[%clk 0:00:15.4]} 41. f3 {[%clk 0:00:18.4]}
41... Kf6 {[%clk 0:00:13.7]} 42. Kg3 {[%clk 0:00:18.5]} 42... Rb4 {[%clk
0:00:13.5]} 43. Rb8 {[%clk 0:00:17.2]} 43... e5 {[%clk 0:00:10.9]} 44. b6 {[%clk
0:00:16.2]} 44... Rb3 {[%clk 0:00:10.2]} 45. Kf2 {[%clk 0:00:16.5]} 45... Kg7
{[%clk 0:00:08.8]} 46. Ke2 {[%clk 0:00:14.9]} 46... Kf6 {[%clk 0:00:03.9]} 47.
b7 {[%clk 0:00:15]} 47... Kg7 {[%clk 0:00:03.4]} 48. Re8 {[%clk 0:00:14.8]}
48... Rxb7 {[%clk 0:00:02.6]} 49. Rxe5 {[%clk 0:00:15.4]} 49... Rb6 {[%clk
0:00:02.9]} 50. Kf2 {[%clk 0:00:15.4]} 50... Rb2+ {[%clk 0:00:03.2]} 51. Kg3
{[%clk 0:00:15.7]} 51... Rb6 {[%clk 0:00:04.1]} 52. Kh4 {[%clk 0:00:15.8]} 52...
Ra6 {[%clk 0:00:04.5]} 53. Re2 {[%clk 0:00:12.7]} 53... Rf6 {[%clk 0:00:04.6]}
54. Kg3 {[%clk 0:00:11.6]} 54... Rb6 {[%clk 0:00:04.9]} 55. Re4 {[%clk
0:00:11.1]} 55... Rc6 {[%clk 0:00:05.1]} 56. Kf4 {[%clk 0:00:11.2]} 56... Ra6
{[%clk 0:00:05.4]} 57. Rd4 {[%clk 0:00:10.4]} 57... Rf6+ {[%clk 0:00:05.7]} 58.
Ke4 {[%clk 0:00:10.7]} 58... Re6+ {[%clk 0:00:06.6]} 59. Kf4 {[%clk 0:00:09.8]}
59... Ra6 {[%clk 0:00:07.5]} 60. Rd5 {[%clk 0:00:08.7]} 60... Rf6+ {[%clk
0:00:07.4]} 61. Rf5 {[%clk 0:00:08.8]} 61... Ra6 {[%clk 0:00:07.8]} 62. Ke4
{[%clk 0:00:07.7]} 62... Ra4+ {[%clk 0:00:08]} 63. Ke3 {[%clk 0:00:08.1]} 63...
Ra3+ {[%clk 0:00:08.1]} 64. Kf2 {[%clk 0:00:08.6]} 64... Ra2+ {[%clk 0:00:09]}
65. Kg3 {[%clk 0:00:09.1]} 65... Ra4 {[%clk 0:00:09.9]} 66. f4 {[%clk
0:00:08.3]} 66... Ra3+ {[%clk 0:00:10]} 67. Kh4 {[%clk 0:00:08.7]} 67... Rb3
{[%clk 0:00:10.3]} 68. Ra5 {[%clk 0:00:08]} 68... Rc3 {[%clk 0:00:10.1]} 69. Ra6
{[%clk 0:00:07.8]} 69... Rf3 {[%clk 0:00:09.8]} 70. f5 {[%clk 0:00:07.7]} 70...
Rc3 {[%clk 0:00:09.6]} 71. Rb6 {[%clk 0:00:06.3]} 71... Ra3 {[%clk 0:00:09.3]}
72. Rb1 {[%clk 0:00:06.1]} 72... Rc3 {[%clk 0:00:09.2]} 73. Rg1 {[%clk
0:00:05.9]} 73... Rd3 {[%clk 0:00:08.7]} 74. Rg3 {[%clk 0:00:05.9]} 74... Rd2
{[%clk 0:00:06.7]} 75. g5 {[%clk 0:00:05.3]} 75... Rd4+ {[%clk 0:00:04.3]} 76.
Kh5 {[%clk 0:00:05.5]} 76... hxg5 {[%clk 0:00:03.9]} 77. Kxg5 {[%clk 0:00:06]}
77... f6+ {[%clk 0:00:02.6]} 78. Kh5+ {[%clk 0:00:06.5]} 78... Kf7 {[%clk
0:00:02.7]} 79. Ra3 {[%clk 0:00:06.2]} 79... Rd7 {[%clk 0:00:02.4]} 80. Kh6
{[%clk 0:00:06.1]} 80... Rc7 {[%clk 0:00:02.4]} 81. Ra8 {[%clk 0:00:04.4]} 1-0

[Event "*** Titled Tuesday Blitz"]
[Site "Chess.com"]
[Date "2020.05.12"]
[Round "4"]
[White "blitzking1729"]
[Black "tylityli"]
[Result "1-0"]
[WhiteElo "2516"]
[BlackElo "2325"]
[TimeControl "180+1"]
[EndTime "10:40:52 PDT"]
[Termination "blitzking1729 won by checkmate"]

1. Nf3 {[%clk 0:03:00.9]} 1... d5 {[%clk 0:02:59.2]} 2. c4 {[%clk 0:03:00.7]}
2... c6 {[%clk 0:02:58.8]} 3. d4 {[%clk 0:03:00]} 3... Nf6 {[%clk 0:02:57.4]} 4.
Qc2 {[%clk 0:03:00.1]} 4... g6 {[%clk 0:02:56.4]} 5. Bf4 {[%clk 0:02:59.5]} 5...
Bg7 {[%clk 0:02:55.6]} 6. e3 {[%clk 0:02:59.7]} 6... Nbd7 {[%clk 0:02:54.9]} 7.
Nc3 {[%clk 0:02:59.2]} 7... O-O {[%clk 0:02:55]} 8. Be2 {[%clk 0:02:58.8]} 8...
a6 {[%clk 0:02:54.8]} 9. O-O {[%clk 0:02:56.9]} 9... e6 {[%clk 0:02:47.4]} 10.
c5 {[%clk 0:02:52.4]} 10... Nh5 {[%clk 0:02:45.5]} 11. Bd6 {[%clk 0:02:52]}
11... Re8 {[%clk 0:02:44.3]} 12. b4 {[%clk 0:02:51.5]} 12... Bf8 {[%clk
0:02:42.3]} 13. Bxf8 {[%clk 0:02:48.2]} 13... Kxf8 {[%clk 0:02:37.5]} 14. a4
{[%clk 0:02:48.6]} 14... Ng7 {[%clk 0:02:34.5]} 15. b5 {[%clk 0:02:48.4]} 15...
e5 {[%clk 0:02:33.3]} 16. Rfd1 {[%clk 0:02:24.9]} 16... e4 {[%clk 0:02:30.9]}
17. Nd2 {[%clk 0:02:23.1]} 17... f5 {[%clk 0:02:30.8]} 18. Rdb1 {[%clk
0:02:19.7]} 18... Ne6 {[%clk 0:02:26.3]} 19. bxc6 {[%clk 0:02:16.5]} 19... bxc6
{[%clk 0:02:27.2]} 20. a5 {[%clk 0:02:16.8]} 20... Qc7 {[%clk 0:02:21.7]} 21.
Qa4 {[%clk 0:02:10.7]} 21... h5 {[%clk 0:02:16.1]} 22. Rb2 {[%clk 0:01:55]}
22... Kg7 {[%clk 0:02:14.1]} 23. Rab1 {[%clk 0:01:54.9]} 23... f4 {[%clk
0:02:10.2]} 24. Na2 {[%clk 0:01:53.9]} 24... Rf8 {[%clk 0:02:06.2]} 25. Nb4
{[%clk 0:01:50.4]} 25... Nd8 {[%clk 0:01:58.3]} 26. Re1 {[%clk 0:01:38.4]} 26...
Nf6 {[%clk 0:01:39.6]} 27. Qa3 {[%clk 0:01:13.5]} 27... g5 {[%clk 0:01:31.8]}
28. f3 {[%clk 0:01:04.5]} 28... fxe3 {[%clk 0:01:15.1]} 29. Qxe3 {[%clk
0:01:03.3]} 29... Qf4 {[%clk 0:01:15.1]} 30. Nc2 {[%clk 0:00:51.4]} 30... Ra7
{[%clk 0:01:03]} 31. fxe4 {[%clk 0:00:44.4]} 31... dxe4 {[%clk 0:00:59.5]} 32.
Rf1 {[%clk 0:00:40.6]} 32... Qxe3+ {[%clk 0:00:57.7]} 33. Nxe3 {[%clk
0:00:41.5]} 33... Rb7 {[%clk 0:00:56.1]} 34. Rb6 {[%clk 0:00:39.8]} 34... Rd7
{[%clk 0:00:51.6]} 35. Bxa6 {[%clk 0:00:35.2]} 35... Bxa6 {[%clk 0:00:49.8]} 36.
Rxa6 {[%clk 0:00:36.1]} 36... Kg6 {[%clk 0:00:48.9]} 37. Ndc4 {[%clk 0:00:30.5]}
37... Rxd4 {[%clk 0:00:42.4]} 38. Ne5+ {[%clk 0:00:30.5]} 38... Kh7 {[%clk
0:00:37.5]} 39. Nxc6 {[%clk 0:00:28.9]} 39... Nxc6 {[%clk 0:00:35.3]} 40. Rxc6
{[%clk 0:00:29.2]} 40... Nd7 {[%clk 0:00:13.7]} 41. Rxf8 {[%clk 0:00:28.3]}
41... Nxf8 {[%clk 0:00:14.6]} 42. Rd6 {[%clk 0:00:28.3]} 42... Ra4 {[%clk
0:00:12.7]} 43. a6 {[%clk 0:00:23.3]} 43... Kg7 {[%clk 0:00:10.5]} 44. c6 {[%clk
0:00:22.3]} 44... Rxa6 {[%clk 0:00:08.7]} 45. c7 {[%clk 0:00:22.5]} 45... Ra1+
{[%clk 0:00:08.7]} 46. Rd1 {[%clk 0:00:22.1]} 46... Ra8 {[%clk 0:00:05.8]} 47.
Rd8 {[%clk 0:00:21]} 47... Ra1+ {[%clk 0:00:04.9]} 48. Kf2 {[%clk 0:00:20.2]}
48... Rc1 {[%clk 0:00:04]} 49. c8=Q {[%clk 0:00:19.8]} 49... Rxc8 {[%clk
0:00:03.1]} 50. Rxc8 {[%clk 0:00:20.7]} 50... Ne6 {[%clk 0:00:02.8]} 51. Rc4
{[%clk 0:00:18.9]} 51... Kf6 {[%clk 0:00:02.4]} 52. Rxe4 {[%clk 0:00:19]} 52...
Nc5 {[%clk 0:00:02.8]} 53. Rc4 {[%clk 0:00:18.7]} 53... Nd3+ {[%clk 0:00:02.7]}
54. Ke2 {[%clk 0:00:18.4]} 54... Ne5 {[%clk 0:00:02.7]} 55. Rc5 {[%clk
0:00:18.2]} 55... Nd7 {[%clk 0:00:01.9]} 56. Rf5+ {[%clk 0:00:18]} 56... Kg6
{[%clk 0:00:02]} 57. Rd5 {[%clk 0:00:18]} 57... Nf8 {[%clk 0:00:01.3]} 58. Rd6+
{[%clk 0:00:18]} 58... Kf7 {[%clk 0:00:01.6]} 59. Nc4 {[%clk 0:00:16.6]} 59...
g4 {[%clk 0:00:01.8]} 60. Ne5+ {[%clk 0:00:16.2]} 60... Kg7 {[%clk 0:00:02.4]}
61. Ke3 {[%clk 0:00:15.7]} 61... Nh7 {[%clk 0:00:02.4]} 62. Rd7+ {[%clk
0:00:15.2]} 62... Kh6 {[%clk 0:00:03.3]} 63. Rxh7+ {[%clk 0:00:15.3]} 63... Kxh7
{[%clk 0:00:03.4]} 64. Kf4 {[%clk 0:00:16.2]} 64... Kh6 {[%clk 0:00:03.8]} 65.
g3 {[%clk 0:00:14.1]} 65... Kg7 {[%clk 0:00:03.1]} 66. Kg5 {[%clk 0:00:14.3]}
66... Kh7 {[%clk 0:00:04]} 67. Kxh5 {[%clk 0:00:14.7]} 67... Kg7 {[%clk
0:00:04.9]} 68. Kxg4 {[%clk 0:00:15.3]} 68... Kh7 {[%clk 0:00:05.8]} 69. h4
{[%clk 0:00:15.8]} 69... Kh8 {[%clk 0:00:06.7]} 70. Nf3 {[%clk 0:00:16.6]} 70...
Kg8 {[%clk 0:00:07.6]} 71. Kg5 {[%clk 0:00:17.5]} 71... Kh8 {[%clk 0:00:08.5]}
72. h5 {[%clk 0:00:18.1]} 72... Kg8 {[%clk 0:00:09.4]} 73. Kh6 {[%clk 0:00:19]}
73... Kh8 {[%clk 0:00:10.2]} 74. g4 {[%clk 0:00:19.9]} 74... Kg8 {[%clk
0:00:11.1]} 75. g5 {[%clk 0:00:20.4]} 75... Kh8 {[%clk 0:00:12]} 76. g6 {[%clk
0:00:21.3]} 76... Kg8 {[%clk 0:00:12.9]} 77. g7 {[%clk 0:00:19.9]} 77... Kf7
{[%clk 0:00:10.8]} 78. Kh7 {[%clk 0:00:20.5]} 78... Kf6 {[%clk 0:00:11.7]} 79.
g8=Q {[%clk 0:00:21.1]} 79... Kf5 {[%clk 0:00:12.6]} 80. Qg6+ {[%clk 0:00:21.2]}
80... Kf4 {[%clk 0:00:13.5]} 81. Kg7 {[%clk 0:00:18.7]} 81... Ke3 {[%clk
0:00:14.4]} 82. h6 {[%clk 0:00:19.4]} 82... Kf2 {[%clk 0:00:15.3]} 83. h7 {[%clk
0:00:19.9]} 83... Kf1 {[%clk 0:00:16.2]} 84. h8=Q {[%clk 0:00:18.9]} 84... Kf2
{[%clk 0:00:17.1]} 85. Qh2+ {[%clk 0:00:18.8]} 85... Ke3 {[%clk 0:00:16.5]} 86.
Qe6+ {[%clk 0:00:17.9]} 86... Kd3 {[%clk 0:00:15]} 87. Qhe2+ {[%clk 0:00:16.6]}
87... Kc3 {[%clk 0:00:13.8]} 88. Q6c4# {[%clk 0:00:17.1]} 1-0

[Event "*** Titled Tuesday Blitz"]
[Site "Chess.com"]
[Date "2020.05.12"]
[Round "4"]
[White "Buffy7"]
[Black "Kingsman132"]
[Result "1-0"]
[WhiteElo "2684"]
[BlackElo "2347"]
[TimeControl "180+1"]
[EndTime "10:40:53 PDT"]
[Termination "Buffy7 won by resignation"]

1. d4 {[%clk 0:03:00.9]} 1... Nf6 {[%clk 0:02:59.4]} 2. c4 {[%clk 0:03:00.7]}
2... e6 {[%clk 0:02:55.8]} 3. Nc3 {[%clk 0:03:00.5]} 3... d5 {[%clk 0:02:53.8]}
4. cxd5 {[%clk 0:03:00.1]} 4... exd5 {[%clk 0:02:54.7]} 5. Bg5 {[%clk
0:02:59.6]} 5... Be7 {[%clk 0:02:50.3]} 6. e3 {[%clk 0:02:59.6]} 6... O-O {[%clk
0:02:49]} 7. Qc2 {[%clk 0:02:59.7]} 7... b6 {[%clk 0:02:46.8]} 8. Nf3 {[%clk
0:02:57.6]} 8... Bb7 {[%clk 0:02:45.7]} 9. Bxf6 {[%clk 0:02:53.6]} 9... Bxf6
{[%clk 0:02:42.8]} 10. Be2 {[%clk 0:02:54.5]} 10... Nd7 {[%clk 0:02:37.9]} 11.
O-O {[%clk 0:02:55]} 11... c5 {[%clk 0:02:34.8]} 12. Rad1 {[%clk 0:02:54.5]}
12... Rc8 {[%clk 0:02:32.7]} 13. Qf5 {[%clk 0:02:38.4]} 13... g6 {[%clk
0:02:28.2]} 14. Qg4 {[%clk 0:02:36.6]} 14... Bg7 {[%clk 0:02:24.1]} 15. Qh3
{[%clk 0:02:14.6]} 15... Nf6 {[%clk 0:02:17]} 16. a3 {[%clk 0:01:54.6]} 16... h5
{[%clk 0:02:14.7]} 17. Ne5 {[%clk 0:01:48.1]} 17... cxd4 {[%clk 0:02:11.1]} 18.
exd4 {[%clk 0:01:49]} 18... Ne4 {[%clk 0:02:04.9]} 19. Nxe4 {[%clk 0:01:29]}
19... dxe4 {[%clk 0:02:05.8]} 20. Bc4 {[%clk 0:01:29.5]} 20... Qd6 {[%clk
0:01:46]} 21. Qg3 {[%clk 0:01:19.6]} 21... Bd5 {[%clk 0:01:38.1]} 22. b3 {[%clk
0:01:01.6]} 22... Bxc4 {[%clk 0:01:34.2]} 23. bxc4 {[%clk 0:01:00.6]} 23... Bxe5
{[%clk 0:01:27.5]} 24. dxe5 {[%clk 0:01:01.5]} 24... Qe6 {[%clk 0:01:23.3]} 25.
Rd6 {[%clk 0:01:00.3]} 25... h4 {[%clk 0:01:22.6]} 26. Qg5 {[%clk 0:00:50.8]}
26... Qf5 {[%clk 0:01:19.3]} 27. Qxf5 {[%clk 0:00:46.2]} 27... gxf5 {[%clk
0:01:20.2]} 28. Rf6 {[%clk 0:00:46.7]} 28... Rxc4 {[%clk 0:01:13.9]} 29. Rxf5
{[%clk 0:00:47]} 29... Rd8 {[%clk 0:01:12.6]} 30. Rf4 {[%clk 0:00:45.8]} 30...
Rd3 {[%clk 0:01:06.8]} 31. Rxh4 {[%clk 0:00:42.4]} 31... Rxa3 {[%clk 0:01:01.5]}
32. Rd1 {[%clk 0:00:42.4]} 32... Rd3 {[%clk 0:00:58.9]} 33. Re1 {[%clk 0:00:39]}
33... Rd5 {[%clk 0:00:56.1]} 34. Rh5 {[%clk 0:00:35.4]} 34... a5 {[%clk
0:00:51.6]} 35. h4 {[%clk 0:00:35.5]} 35... a4 {[%clk 0:00:45.5]} 36. Rg5+
{[%clk 0:00:35.8]} 36... Kf8 {[%clk 0:00:42.2]} 37. h5 {[%clk 0:00:33.9]} 37...
a3 {[%clk 0:00:40.2]} 38. h6 {[%clk 0:00:31.7]} 38... e3 {[%clk 0:00:34.8]} 39.
h7 {[%clk 0:00:26.7]} 39... Rh4 {[%clk 0:00:34.6]} 40. Rg8+ {[%clk 0:00:26.4]}
40... Ke7 {[%clk 0:00:33]} 41. h8=Q {[%clk 0:00:26]} 41... Rxh8 {[%clk
0:00:33.9]} 42. Rxh8 {[%clk 0:00:26.8]} 42... Rd2 {[%clk 0:00:27.4]} 43. fxe3
{[%clk 0:00:23.9]} 43... b5 {[%clk 0:00:27.3]} 44. Rb8 {[%clk 0:00:23.3]} 44...
Rb2 {[%clk 0:00:22]} 45. Kh2 {[%clk 0:00:20.8]} 45... a2 {[%clk 0:00:20]} 46.
Ra1 {[%clk 0:00:13.6]} 46... b4 {[%clk 0:00:17.4]} 47. Rxa2 {[%clk 0:00:13.6]}
47... Rxa2 {[%clk 0:00:15.5]} 48. Rxb4 {[%clk 0:00:14.5]} 48... Ke6 {[%clk
0:00:16.1]} 49. Rf4 {[%clk 0:00:13.3]} 49... Re2 {[%clk 0:00:15.8]} 50. Rf6+
{[%clk 0:00:10.6]} 50... Kxe5 {[%clk 0:00:15.9]} 51. Rxf7 {[%clk 0:00:11]} 51...
Rxe3 {[%clk 0:00:16.8]} 52. g3 {[%clk 0:00:11]} 52... Ke6 {[%clk 0:00:16.4]} 53.
Rf8 {[%clk 0:00:11.3]} 53... Ke7 {[%clk 0:00:16]} 54. Rf4 {[%clk 0:00:11.5]}
54... Re5 {[%clk 0:00:15.3]} 55. Kh3 {[%clk 0:00:11.6]} 55... Re6 {[%clk
0:00:14.6]} 56. Kh4 {[%clk 0:00:11.3]} 56... Re1 {[%clk 0:00:12.9]} 57. Kg5
{[%clk 0:00:11.2]} 57... Rg1 {[%clk 0:00:12.9]} 58. g4 {[%clk 0:00:11.5]} 58...
Ke6 {[%clk 0:00:12.8]} 59. Kg6 {[%clk 0:00:11.7]} 59... Ke5 {[%clk 0:00:13.1]}
60. Rf5+ {[%clk 0:00:08.6]} 60... Ke6 {[%clk 0:00:12.9]} 61. g5 {[%clk
0:00:08.6]} 61... Ke7 {[%clk 0:00:12.9]} 62. Rf7+ {[%clk 0:00:08.2]} 62... Ke8
{[%clk 0:00:12.9]} 63. Rf5 {[%clk 0:00:08.4]} 63... Ke7 {[%clk 0:00:13.1]} 64.
Kg7 {[%clk 0:00:07.9]} 64... Ke6 {[%clk 0:00:13.5]} 65. Rf6+ {[%clk 0:00:08.2]}
65... Ke7 {[%clk 0:00:14.1]} 66. g6 {[%clk 0:00:08.8]} 66... Rh1 {[%clk
0:00:13.5]} 67. Rf7+ {[%clk 0:00:08.7]} 67... Ke8 {[%clk 0:00:14]} 68. Rf4
{[%clk 0:00:09.3]} 68... Rh2 {[%clk 0:00:13]} 69. Re4+ {[%clk 0:00:09.5]} 69...
Kd7 {[%clk 0:00:12.7]} 70. Kg8 {[%clk 0:00:09.2]} 70... Rf2 {[%clk 0:00:10.9]}
71. g7 {[%clk 0:00:09.4]} 71... Rh2 {[%clk 0:00:10.4]} 72. Re5 {[%clk
0:00:06.3]} 72... Kd6 {[%clk 0:00:09.7]} 73. Re3 {[%clk 0:00:04.9]} 73... Rh1
{[%clk 0:00:08.3]} 74. Re4 {[%clk 0:00:05]} 74... Kd5 {[%clk 0:00:08.1]} 75. Re7
{[%clk 0:00:04.8]} 75... Kd6 {[%clk 0:00:08.2]} 76. Rf7 {[%clk 0:00:05.3]} 76...
Ke6 {[%clk 0:00:08.1]} 77. Kf8 {[%clk 0:00:05.3]} 77... Ra1 {[%clk 0:00:03.6]}
78. g8=Q {[%clk 0:00:05.6]} 78... Ra8+ {[%clk 0:00:04.2]} 79. Kg7 {[%clk
0:00:06.2]} 79... Ra7 {[%clk 0:00:04.6]} 80. Rxa7+ {[%clk 0:00:05.6]} 80... Ke5
{[%clk 0:00:05.5]} 81. Rf7 {[%clk 0:00:06.3]} 1-0

[Event "*** Titled Tuesday Blitz"]
[Site "Chess.com"]
[Date "2020.05.12"]
[Round "4"]
[White "NZT72"]
[Black "baag"]
[Result "1/2-1/2"]
[WhiteElo "2471"]
[BlackElo "2636"]
[TimeControl "180+1"]
[EndTime "10:40:55 PDT"]
[Termination "Game drawn - insufficient material"]

1. c4 {[%clk 0:03:00.9]} 1... Nf6 {[%clk 0:03:00.9]} 2. g3 {[%clk 0:03:00.5]}
2... e6 {[%clk 0:03:01.5]} 3. Bg2 {[%clk 0:03:00.1]} 3... d5 {[%clk 0:03:02.4]}
4. Nf3 {[%clk 0:03:00.4]} 4... Be7 {[%clk 0:03:03]} 5. O-O {[%clk 0:03:00.3]}
5... O-O {[%clk 0:03:03.7]} 6. d4 {[%clk 0:03:00.4]} 6... dxc4 {[%clk
0:03:03.5]} 7. Qa4 {[%clk 0:03:00.2]} 7... a6 {[%clk 0:03:03.4]} 8. Qxc4 {[%clk
0:03:00.3]} 8... b5 {[%clk 0:03:03.9]} 9. Qc2 {[%clk 0:03:00.8]} 9... Bb7 {[%clk
0:03:04.4]} 10. Bd2 {[%clk 0:03:00.9]} 10... Be4 {[%clk 0:03:01]} 11. Qc1 {[%clk
0:03:00.8]} 11... Bb7 {[%clk 0:03:01.3]} 12. Qc2 {[%clk 0:03:00]} 12... Nbd7
{[%clk 0:03:01.8]} 13. Ba5 {[%clk 0:02:58.7]} 13... Rc8 {[%clk 0:03:00.6]} 14.
Nbd2 {[%clk 0:02:50.8]} 14... Nb6 {[%clk 0:03:00.5]} 15. Nb3 {[%clk 0:02:42.2]}
15... Nc4 {[%clk 0:02:58.4]} 16. Bc3 {[%clk 0:02:30.8]} 16... Be4 {[%clk
0:02:57.4]} 17. Qc1 {[%clk 0:02:25.7]} 17... Qd5 {[%clk 0:02:57.7]} 18. Rd1
{[%clk 0:02:21.2]} 18... Rfd8 {[%clk 0:02:52.2]} 19. Ne1 {[%clk 0:02:16.9]}
19... Bxg2 {[%clk 0:02:52.1]} 20. Nxg2 {[%clk 0:02:14.8]} 20... b4 {[%clk
0:02:38.2]} 21. Be1 {[%clk 0:02:12.9]} 21... Qb5 {[%clk 0:02:35.5]} 22. Qc2
{[%clk 0:01:44.8]} 22... Nd6 {[%clk 0:02:22.4]} 23. Rac1 {[%clk 0:01:36.8]}
23... Nf5 {[%clk 0:02:22.5]} 24. e4 {[%clk 0:01:28.5]} 24... Nh6 {[%clk
0:02:22.7]} 25. f3 {[%clk 0:01:24.6]} 25... c6 {[%clk 0:02:16.8]} 26. Bf2 {[%clk
0:01:23.6]} 26... a5 {[%clk 0:02:16.3]} 27. Nc5 {[%clk 0:01:21.4]} 27... Kh8
{[%clk 0:02:01]} 28. Ne3 {[%clk 0:01:09.4]} 28... Nhg8 {[%clk 0:01:59.5]} 29.
Nc4 {[%clk 0:01:06.6]} 29... Ne8 {[%clk 0:01:44.6]} 30. Ne5 {[%clk 0:01:03.3]}
30... Nd6 {[%clk 0:01:45.1]} 31. Qa4 {[%clk 0:00:35.7]} 31... Nf6 {[%clk
0:01:28.5]} 32. Qxb5 {[%clk 0:00:34.5]} 32... cxb5 {[%clk 0:01:29.4]} 33. b3
{[%clk 0:00:27.7]} 33... Kg8 {[%clk 0:01:27.6]} 34. Kf1 {[%clk 0:00:23.3]} 34...
h5 {[%clk 0:01:12.6]} 35. Ke2 {[%clk 0:00:22.2]} 35... g5 {[%clk 0:01:12.3]} 36.
h3 {[%clk 0:00:19.1]} 36... Kf8 {[%clk 0:01:06.1]} 37. g4 {[%clk 0:00:19.1]}
37... a4 {[%clk 0:00:57.5]} 38. Be3 {[%clk 0:00:18.6]} 38... hxg4 {[%clk
0:00:55.3]} 39. hxg4 {[%clk 0:00:18.3]} 39... axb3 {[%clk 0:00:55.9]} 40. axb3
{[%clk 0:00:18]} 40... Nfe8 {[%clk 0:00:46.5]} 41. Ned3 {[%clk 0:00:16]} 41...
Ra8 {[%clk 0:00:39.8]} 42. Nxb4 {[%clk 0:00:15.9]} 42... Ra3 {[%clk 0:00:39.2]}
43. Ra1 {[%clk 0:00:16.1]} 43... Rda8 {[%clk 0:00:39]} 44. Rxa3 {[%clk
0:00:15.2]} 44... Rxa3 {[%clk 0:00:39.9]} 45. Rd2 {[%clk 0:00:13.5]} 45... Nc7
{[%clk 0:00:33.5]} 46. Nc6 {[%clk 0:00:12.5]} 46... Nc8 {[%clk 0:00:23]} 47.
Nxe7 {[%clk 0:00:11.8]} 47... Nxe7 {[%clk 0:00:23.9]} 48. Bxg5 {[%clk
0:00:12.1]} 48... Nc6 {[%clk 0:00:24.5]} 49. Be3 {[%clk 0:00:12]} 49... Nb4
{[%clk 0:00:24.4]} 50. Bf4 {[%clk 0:00:10.4]} 50... Ne8 {[%clk 0:00:23.3]} 51.
g5 {[%clk 0:00:08.3]} 51... Ke7 {[%clk 0:00:21.9]} 52. d5 {[%clk 0:00:08.4]}
52... exd5 {[%clk 0:00:22.8]} 53. exd5 {[%clk 0:00:08.9]} 53... Nd6 {[%clk
0:00:22.9]} 54. Ne4 {[%clk 0:00:08.5]} 54... Nxe4 {[%clk 0:00:18.6]} 55. fxe4
{[%clk 0:00:09.4]} 55... Rxb3 {[%clk 0:00:19.5]} 56. Be3 {[%clk 0:00:08.3]}
56... Kd6 {[%clk 0:00:18.9]} 57. Bf4+ {[%clk 0:00:08.4]} 57... Kd7 {[%clk
0:00:19]} 58. e5 {[%clk 0:00:07]} 58... Rh3 {[%clk 0:00:18.9]} 59. Rb2 {[%clk
0:00:04.9]} 59... Nxd5 {[%clk 0:00:19.3]} 60. Bd2 {[%clk 0:00:03.4]} 60... Rh2+
{[%clk 0:00:19.9]} 61. Kd3 {[%clk 0:00:03.5]} 61... b4 {[%clk 0:00:20.7]} 62.
Rb3 {[%clk 0:00:03.7]} 62... Rh3+ {[%clk 0:00:20.5]} 63. Kc4 {[%clk 0:00:04.1]}
63... Rxb3 {[%clk 0:00:21.3]} 64. Kxb3 {[%clk 0:00:05]} 64... Ke6 {[%clk
0:00:22]} 65. Bxb4 {[%clk 0:00:05.3]} 65... Kxe5 {[%clk 0:00:22]} 66. Bd2 {[%clk
0:00:05.9]} 66... Kd4 {[%clk 0:00:22]} 67. Kc2 {[%clk 0:00:06.1]} 67... Ke4
{[%clk 0:00:22.6]} 68. Kd1 {[%clk 0:00:05.7]} 68... Kd3 {[%clk 0:00:23.5]} 69.
Bc1 {[%clk 0:00:05.3]} 69... Nc3+ {[%clk 0:00:22.5]} 70. Ke1 {[%clk 0:00:05.2]}
70... Ne4 {[%clk 0:00:23.4]} 71. Kf1 {[%clk 0:00:05.1]} 71... Nd6 {[%clk
0:00:21.4]} 72. Kg2 {[%clk 0:00:05.2]} 72... Ke4 {[%clk 0:00:21.3]} 73. Kg3
{[%clk 0:00:05.6]} 73... Kf5 {[%clk 0:00:22.2]} 74. Kf3 {[%clk 0:00:05.7]} 74...
Nc4 {[%clk 0:00:22.8]} 75. Kg3 {[%clk 0:00:05.3]} 75... Nb6 {[%clk 0:00:21.7]}
76. Kh4 {[%clk 0:00:05.6]} 76... Nd5 {[%clk 0:00:22.6]} 77. Kh5 {[%clk
0:00:05.7]} 77... Nc3 {[%clk 0:00:21.2]} 78. Kh6 {[%clk 0:00:05.4]} 78... Ne2
{[%clk 0:00:21.9]} 79. Bd2 {[%clk 0:00:05.3]} 79... Ng3 {[%clk 0:00:20.4]} 80.
Kg7 {[%clk 0:00:05.1]} 80... Ke6 {[%clk 0:00:21.1]} 81. g6 {[%clk 0:00:03.8]}
81... Nf5+ {[%clk 0:00:20.4]} 82. Kh7 {[%clk 0:00:03.5]} 82... f6 {[%clk
0:00:21]} 83. g7 {[%clk 0:00:03.5]} 83... Ne7 {[%clk 0:00:21.7]} 84. g8=Q+
{[%clk 0:00:03.3]} 84... Nxg8 {[%clk 0:00:22]} 85. Kxg8 {[%clk 0:00:04.2]} 85...
f5 {[%clk 0:00:22.9]} 86. Kg7 {[%clk 0:00:04.5]} 86... Ke5 {[%clk 0:00:23.4]}
87. Kg6 {[%clk 0:00:04.6]} 87... Ke4 {[%clk 0:00:23.5]} 88. Kg5 {[%clk
0:00:04.7]} 88... Ke5 {[%clk 0:00:24.1]} 89. Bf4+ {[%clk 0:00:05.6]} 89... Ke6
{[%clk 0:00:24.3]} 90. Kg6 {[%clk 0:00:06]} 90... Kd5 {[%clk 0:00:24.7]} 91.
Kxf5 {[%clk 0:00:06.9]} 1/2-1/2